fUSD/lending_fUSD_20260606
["ID","MTS","AMOUNT","RATE_DAILY","PERIOD"]
[424269499,1780714241000,-152.254152,0.00014514,2]
[424269527,1780714241000,-500.0,0.0001478,2]
[424269534,1780714241000,-500.0,0.0001478,2]
[424269528,1780714241000,-500.0,0.0001478,2]
[424269536,1780714241000,-500.0,0.0001478,2]
[424269537,1780714241000,-500.0,0.0001478,2]
[424269529,1780714241000,-500.0,0.0001478,2]
[424269532,1780714241000,-500.0,0.0001478,2]
[424269530,1780714241000,-500.0,0.0001478,2]
[424269531,1780714241000,-500.0,0.0001478,2]
[424269535,1780714241000,-500.0,0.0001478,2]
[424269533,1780714241000,-500.0,0.0001478,2]
[424269539,1780714241000,-500.0,0.0001478,2]
[424269548,1780714241000,-500.0,0.0001478,2]
[424269547,1780714241000,-500.0,0.0001478,2]
[424269541,1780714241000,-500.0,0.0001478,2]
[424269538,1780714241000,-500.0,0.0001478,2]
[424269546,1780714241000,-500.0,0.0001478,2]
[424269540,1780714241000,-500.0,0.0001478,2]
[424269542,1780714241000,-500.0,0.0001478,2]
[424269543,1780714241000,-500.0,0.0001478,2]
[424269545,1780714241000,-500.0,0.0001478,2]
[424269544,1780714241000,-500.0,0.0001478,2]
[424269517,1780714241000,-500.0,0.0001478,2]
[424269519,1780714241000,-500.0,0.0001478,2]
[424269525,1780714241000,-500.0,0.0001478,2]
[424269515,1780714241000,-3477.4603923,0.00014766,2]
[424269494,1780714241000,-2000.0,0.00014514,2]
[424269490,1780714241000,-2000.0,0.00014514,2]
[424269488,1780714241000,-2000.0,0.00014514,2]
[424269496,1780714241000,-2000.0,0.00014514,2]
[424269497,1780714241000,-2000.0,0.00014514,2]
[424269520,1780714241000,-500.0,0.0001478,2]
[424269493,1780714241000,-2000.0,0.00014514,2]
[424269495,1780714241000,-2000.0,0.00014514,2]
[424269500,1780714241000,-151.0,0.00014514,2]
[424269501,1780714241000,-151.0,0.00014514,2]
[424269503,1780714241000,-151.0,0.00014514,2]
[424269502,1780714241000,-151.0,0.00014514,2]
[424269504,1780714241000,-151.0,0.00014514,2]
[424269498,1780714241000,-1765.09,0.00014514,2]
[424269507,1780714241000,-500.0,0.000146,5]
[424269509,1780714241000,-151.298836,0.00014681,2]
[424269506,1780714241000,-151.0,0.00014514,2]
[424269505,1780714241000,-151.0,0.00014514,2]
[424269511,1780714241000,-33261.1868,0.00014681,2]
[424269512,1780714241000,-2000.0,0.00014681,2]
[424269508,1780714241000,-157.624035,0.00014681,2]
[424269514,1780714241000,-350.0,0.00014762,2]
[424269522,1780714241000,-500.0,0.0001478,2]
[424269513,1780714241000,-500.0,0.000147,5]
[424269524,1780714241000,-500.0,0.0001478,2]
[424269523,1780714241000,-500.0,0.0001478,2]
[424269510,1780714241000,-151.0,0.00014681,2]
[424269554,1780714242000,-500.0,0.0001478,2]
[424269558,1780714242000,-500.0,0.0001478,2]
[424269561,1780714242000,-500.0,0.0001478,2]
[424269560,1780714242000,-500.0,0.0001478,2]
[424269559,1780714242000,-500.0,0.0001478,2]
[424269555,1780714242000,-500.0,0.0001478,2]
[424269550,1780714242000,-500.0,0.0001478,2]
[424269557,1780714242000,-500.0,0.0001478,2]
[424269553,1780714242000,-500.0,0.0001478,2]
[424269552,1780714242000,-500.0,0.0001478,2]
[424269551,1780714242000,-500.0,0.0001478,2]
[424269549,1780714242000,-500.0,0.0001478,2]
[424269563,1780714242000,-500.0,0.0001478,2]
[424269556,1780714242000,-500.0,0.0001478,2]
[424269562,1780714242000,-500.0,0.0001478,2]
[424269569,1780714242000,-500.0,0.0001478,2]
[424269565,1780714242000,-500.0,0.0001478,2]
[424269583,1780714242000,-1171.54355154,0.00014781,2]
[424269579,1780714242000,-134047.87568242,0.00014781,2]
[424269578,1780714242000,-262.87031412,0.0001478,2]
[424269577,1780714242000,-500.0,0.0001478,2]
[424269572,1780714242000,-500.0,0.0001478,2]
[424269574,1780714242000,-500.0,0.0001478,2]
[424269573,1780714242000,-500.0,0.0001478,2]
[424269576,1780714242000,-500.0,0.0001478,2]
[424269571,1780714242000,-500.0,0.0001478,2]
[424269567,1780714242000,-500.0,0.0001478,2]
[424269568,1780714242000,-500.0,0.0001478,2]
[424269564,1780714242000,-500.0,0.0001478,2]
[424269566,1780714242000,-500.0,0.0001478,2]
[424269575,1780714242000,-500.0,0.0001478,2]
[424269570,1780714242000,-500.0,0.0001478,2]
[424269584,1780714243000,-273.1454,0.00014781,2]
[424269587,1780714243000,-314.47253761,0.00014781,2]
[424269588,1780714243000,-2766.70849348,0.00014781,2]
[424269590,1780714243000,-446.70290011,0.00014781,2]
[424269589,1780714243000,-396.39720214,0.00014781,2]
[424269591,1780714243000,-564.92467873,0.00014781,2]
[424269602,1780714246000,-684.78,0.000113,2]
[424269614,1780714246000,-404.7537151,0.00014781,2]
[424269613,1780714246000,-3646.96685886,0.00014781,2]
[424269612,1780714246000,-5689.00094114,0.00014781,2]
[424269605,1780714246000,-3315.22,0.000113,2]
[424269610,1780714246000,-2429.16270684,0.00014305,2]
[424269609,1780714246000,-17732.08992413,0.00014305,2]
[424269611,1780714246000,-35961.77897031,0.00014781,2]
[424269607,1780714246000,-6590.23087138,0.00013554,2]
[424269628,1780714727000,190.41,0.00030082,120]
[424269632,1780715203000,153.0,0.00030137,120]
[424269633,1780715237000,200.0,0.000105,3]
[424269636,1780715340000,2000.0,0.00030136,120]
[424269682,1780715432000,-500.0,9.778e-05,2]
[424269677,1780715432000,-500.0,9.778e-05,2]
[424269680,1780715432000,-500.0,9.778e-05,2]
[424269669,1780715432000,-500.0,9.778e-05,2]
[424269676,1780715432000,-500.0,9.778e-05,2]
[424269673,1780715432000,-500.0,9.778e-05,2]
[424269675,1780715432000,-500.0,9.778e-05,2]
[424269683,1780715432000,-500.0,9.778e-05,2]
[424269671,1780715432000,-500.0,9.778e-05,2]
[424269670,1780715432000,-500.0,9.778e-05,2]
[424269668,1780715432000,-500.0,9.778e-05,2]
[424269666,1780715432000,-500.0,9.778e-05,2]
[424269663,1780715432000,-500.0,9.778e-05,2]
[424269664,1780715432000,-500.0,9.778e-05,2]
[424269662,1780715432000,-241.04209363,9.728e-05,2]
[424269661,1780715432000,-273.42,9.677e-05,2]
[424269658,1780715432000,-200.0,9.348e-05,2]
[424269660,1780715432000,-298.68,9.659e-05,2]
[424269667,1780715432000,-500.0,9.778e-05,2]
[424269659,1780715432000,-1000.0,9.621e-05,2]
[424269657,1780715432000,-3060.65666703,9.301e-05,2]
[424269656,1780715432000,-424.0,9.301e-05,2]
[424269655,1780715432000,-380.0,9.301e-05,2]
[424269654,1780715432000,-633.37933997,9.301e-05,2]
[424269665,1780715432000,-500.0,9.778e-05,2]
[424269692,1780715432000,-380.39186677,9.778e-05,2]
[424269672,1780715432000,-500.0,9.778e-05,2]
[424269684,1780715432000,-500.0,9.778e-05,2]
[424269712,1780715432000,-31188.89305558,0.00010276,2]
[424269710,1780715432000,-218375.71424413,0.00010276,2]
[424269707,1780715432000,-500.0,0.00010271,2]
[424269709,1780715432000,-1000.0,0.00010275,2]
[424269708,1780715432000,-356.04767098,0.00010271,2]
[424269704,1780715432000,-644.20602625,0.00010231,2]
[424269701,1780715432000,-266.53729218,0.00010194,2]
[424269699,1780715432000,-478.64140998,0.00010178,2]
[424269698,1780715432000,-169.96514586,0.00010175,2]
[424269703,1780715432000,-250.0,0.00010231,2]
[424269706,1780715432000,-500.0,0.00010271,2]
[424269700,1780715432000,-176.00672804,0.00010194,2]
[424269702,1780715432000,-191.5613943,0.00010221,2]
[424269705,1780715432000,-218.80577412,0.00010266,2]
[424269696,1780715432000,-908.62,0.00010027,2]
[424269697,1780715432000,-200.0,0.00010174,2]
[424269695,1780715432000,-1537.63,9.975e-05,2]
[424269689,1780715432000,-418.23580853,9.778e-05,2]
[424269691,1780715432000,-500.0,9.778e-05,2]
[424269687,1780715432000,-527.12639557,9.778e-05,2]
[424269690,1780715432000,-500.0,9.778e-05,2]
[424269688,1780715432000,-164.95725255,9.778e-05,2]
[424269686,1780715432000,-500.0,9.778e-05,2]
[424269694,1780715432000,-242.3845001,9.902e-05,2]
[424269693,1780715432000,-2000.0,9.829e-05,2]
[424269711,1780715432000,-14932.53676618,0.00010276,2]
[424269685,1780715432000,-500.0,9.778e-05,2]
[424269713,1780715433000,-40826.6498618,0.00010276,2]
[424269714,1780715433000,-300.0,0.00010276,2]
[424269716,1780715438000,-5487.4765585,0.00010276,2]
[424269715,1780715438000,-777.2934415,0.00010276,2]
[424269764,1780715441000,-218.80577412,0.00010766,2]
[424269766,1780715441000,-908.62,0.00010779,2]
[424269767,1780715441000,-1100.0,0.000108,3]
[424269773,1780715441000,-1499.36276393,0.00010861,2]
[424269774,1780715441000,-3531.337,0.00010876,2]
[424269770,1780715441000,-99329.7918,0.00010843,2]
[424269771,1780715441000,-2500.0,0.00010843,2]
[424269772,1780715441000,-4000.0,0.00010843,2]
[424269768,1780715441000,-1242.2138,0.00010843,2]
[424269769,1780715441000,-4178.8879,0.00010843,2]
[424269775,1780715441000,-190.777,0.00010876,2]
[424269787,1780715441000,-166.66,0.00011076,2]
[424269786,1780715441000,-2000.0,0.00011057,2]
[424269776,1780715441000,-16639.59646462,0.00010876,2]
[424269788,1780715441000,-16129.00210483,0.00011099,2]
[424269778,1780715441000,-30075.0,0.00010877,2]
[424269780,1780715441000,-3715.2458679,0.000109,2]
[424269779,1780715441000,-1400.0,0.000109,3]
[424269785,1780715441000,-151.0,0.00011038,2]
[424269781,1780715441000,-3715.24586786,0.000109,2]
[424269783,1780715441000,-150.0,0.00010959,2]
[424269784,1780715441000,-908.62,0.0001103,2]
[424269777,1780715441000,-1602.0,0.00010877,2]
[424269762,1780715441000,-250.0,0.00010733,2]
[424269746,1780715441000,-500.0,0.00010441,2]
[424269765,1780715441000,-1500000.0,0.00010776,2]
[424269740,1780715441000,-908.62,0.00010278,2]
[424269742,1780715441000,-169.96514586,0.00010294,2]
[424269741,1780715441000,-2339.8,0.00010294,2]
[424269743,1780715441000,-191.56139431,0.00010325,2]
[424269744,1780715441000,-500.0,0.00010378,2]
[424269745,1780715441000,-166.66,0.0001039,2]
[424269739,1780715441000,-2188111.43607231,0.00010276,2]
[424269747,1780715441000,-299.23336968,0.00010441,2]
[424269748,1780715441000,-184.40957594,0.00010441,2]
[424269760,1780715441000,-800.0,0.000107,3]
[424269763,1780715441000,-150.0,0.00010733,2]
[424269750,1780715441000,-500.0,0.00010441,2]
[424269749,1780715441000,-500.0,0.00010441,2]
[424269758,1780715441000,-250.0,0.00010645,2]
[424269751,1780715441000,-304.03573793,0.00010441,2]
[424269755,1780715441000,-1106.09,0.00010442,2]
[424269753,1780715441000,-198.47635768,0.00010441,2]
[424269754,1780715441000,-216.06292618,0.00010441,2]
[424269756,1780715441000,-908.62,0.00010529,2]
[424269752,1780715441000,-500.0,0.00010441,2]
[424269757,1780715441000,-500.0,0.000106,3]
[424269759,1780715441000,-164.71,0.00010648,2]
[424269761,1780715441000,-166.66,0.00010733,2]
[424269782,1780715441000,-250.0,0.00010933,2]
[424269813,1780715441000,-3715.24586786,0.00012211,2]
[424269793,1780715441000,-596.3,0.00011281,2]
[424269826,1780715441000,-151.0,0.00012834,2]
[424269824,1780715441000,-151.0,0.00012834,2]
[424269827,1780715441000,-151.0,0.00012834,2]
[424269815,1780715441000,-190.41,0.00012329,2]
[424269817,1780715441000,-16129.00210477,0.00012407,2]
[424269819,1780715441000,-478.64140997,0.00012539,2]
[424269820,1780715441000,-176.00672802,0.00012547,2]
[424269822,1780715441000,-228.14438436,0.00012637,2]
[424269823,1780715441000,-16129.00210477,0.00012834,2]
[424269821,1780715441000,-237.03898908,0.00012575,2]
[424269818,1780715441000,-5272.1846971,0.00012463,2]
[424269830,1780715441000,-3715.24586786,0.00012883,2]
[424269831,1780715441000,-3052.0,0.00013083,5]
[424269832,1780715441000,-2995.0,0.00013083,5]
[424269833,1780715441000,-500.0,0.00013151,2]
[424269829,1780715441000,-1499.36276389,0.00012881,2]
[424269835,1780715441000,-500.0,0.00013151,2]
[424269834,1780715441000,-500.0,0.00013151,2]
[424269837,1780715441000,-500.0,0.00013151,2]
[424269838,1780715441000,-503.8580275,0.00013151,2]
[424269839,1780715441000,-350.0,0.00013151,2]
[424269789,1780715441000,-5272.18469714,0.00011099,2]
[424269828,1780715441000,-5272.1846971,0.00012878,2]
[424269825,1780715441000,-151.0,0.00012834,2]
[424269836,1780715441000,-500.0,0.00013151,2]
[424269814,1780715441000,-2000.0,0.00012286,2]
[424269816,1780715441000,-239.32691035,0.00012329,2]
[424269792,1780715441000,-300.0,0.00011281,2]
[424269791,1780715441000,-5272.1846971,0.00011216,2]
[424269795,1780715441000,-1000.0,0.00011281,2]
[424269790,1780715441000,-16129.00210477,0.00011127,2]
[424269798,1780715441000,-166.66,0.00011419,2]
[424269796,1780715441000,-33261.1868,0.000113,2]
[424269797,1780715441000,-2000.0,0.000113,2]
[424269799,1780715441000,-1499.36276389,0.00011534,2]
[424269801,1780715441000,-16129.00210477,0.00011554,2]
[424269800,1780715441000,-3715.24586786,0.00011539,2]
[424269794,1780715441000,-592.89,0.00011281,2]
[424269807,1780715441000,-16129.00210477,0.0001198,2]
[424269803,1780715441000,-5272.1846971,0.00011631,2]
[424269805,1780715441000,-255.0,0.00011763,2]
[424269811,1780715441000,-500.0,0.0001211,2]
[424269806,1780715441000,-36406.34178846,0.00011814,2]
[424269804,1780715441000,-166.66,0.00011762,2]
[424269812,1780715441000,-1499.36276389,0.00012207,2]
[424269808,1780715441000,-5272.1846971,0.00012047,2]
[424269810,1780715441000,-166.66,0.00012105,2]
[424269802,1780715441000,-602.0,0.00011562,2]
[424269809,1780715441000,-2393.17,0.00012087,2]
[424269866,1780715442000,-500.0,0.00013698,2]
[424269867,1780715442000,-500.0,0.00013698,2]
[424269868,1780715442000,-500.0,0.00013698,2]
[424269857,1780715442000,-500.0,0.00013698,2]
[424269869,1780715442000,-500.0,0.00013698,2]
[424269859,1780715442000,-500.0,0.00013698,2]
[424269858,1780715442000,-500.0,0.00013698,2]
[424269873,1780715442000,-500.0,0.00013698,2]
[424269860,1780715442000,-500.0,0.00013698,2]
[424269870,1780715442000,-500.0,0.00013698,2]
[424269872,1780715442000,-500.0,0.00013698,2]
[424269871,1780715442000,-500.0,0.00013698,2]
[424269874,1780715442000,-500.0,0.00013698,2]
[424269865,1780715442000,-500.0,0.00013698,2]
[424269875,1780715442000,-166.66,0.00013699,2]
[424269856,1780715442000,-500.0,0.00013698,2]
[424269863,1780715442000,-500.0,0.00013698,2]
[424269847,1780715442000,-16129.00210477,0.00013261,2]
[424269861,1780715442000,-500.0,0.00013698,2]
[424269876,1780715442000,-200.0,0.00013699,2]
[424269840,1780715442000,-150.0,0.00013151,2]
[424269841,1780715442000,-150.0,0.00013151,2]
[424269842,1780715442000,-150.0,0.00013151,2]
[424269845,1780715442000,-150.0,0.00013151,2]
[424269846,1780715442000,-250.0,0.00013151,2]
[424269844,1780715442000,-150.0,0.00013151,2]
[424269852,1780715442000,-1499.36276389,0.00013554,2]
[424269848,1780715442000,-5272.1846971,0.00013294,2]
[424269851,1780715442000,-237.03898908,0.00013545,2]
[424269850,1780715442000,-2000.0,0.00013514,2]
[424269849,1780715442000,-500.0,0.0001337,2]
[424269853,1780715442000,-3715.24586786,0.00013555,2]
[424269855,1780715442000,-16129.00210477,0.00013687,2]
[424269864,1780715442000,-500.0,0.00013698,2]
[424269854,1780715442000,-239.32691035,0.00013664,2]
[424269878,1780715442000,-500.0,0.00013699,2]
[424269843,1780715442000,-150.0,0.00013151,2]
[424269880,1780715442000,-174.56387018,0.00013699,2]
[424269910,1780715442000,-500.0,0.0001464,2]
[424269902,1780715442000,-1001.0,0.000146,3]
[424269900,1780715442000,-350.0,0.00014559,2]
[424269904,1780715442000,-1106.09,0.00014618,2]
[424269903,1780715442000,-200.0,0.000146,5]
[424269901,1780715442000,-1001.0,0.000146,2]
[424269905,1780715442000,-500.0,0.0001464,2]
[424269899,1780715442000,-1500.0,0.00014556,2]
[424269906,1780715442000,-500.0,0.0001464,2]
[424269909,1780715442000,-500.0,0.0001464,2]
[424269908,1780715442000,-500.0,0.0001464,2]
[424269912,1780715442000,-500.0,0.0001464,2]
[424269914,1780715442000,-500.0,0.0001464,2]
[424269913,1780715442000,-500.0,0.0001464,2]
[424269915,1780715442000,-142.6619159,0.0001464,2]
[424269877,1780715442000,-154.913139,0.00013699,2]
[424269907,1780715442000,-500.0,0.0001464,2]
[424269892,1780715442000,-500.0,0.00014452,2]
[424269911,1780715442000,-500.0,0.0001464,2]
[424269891,1780715442000,-166.66,0.00014384,2]
[424269881,1780715442000,-5272.1846971,0.0001371,2]
[424269879,1780715442000,-500.0,0.00013699,2]
[424269883,1780715442000,-166.66,0.00013973,2]
[424269885,1780715442000,-166.66,0.0001411,2]
[424269896,1780715442000,-5272.1846971,0.00014541,2]
[424269897,1780715442000,-16129.00210477,0.00014541,2]
[424269895,1780715442000,-350.0,0.00014524,2]
[424269882,1780715442000,-166.66,0.00013836,2]
[424269884,1780715442000,-250.0,0.00014,2]
[424269898,1780715442000,-1030.0,0.00014556,2]
[424269894,1780715442000,-350.0,0.00014464,2]
[424269890,1780715442000,-166.66,0.00014247,2]
[424269888,1780715442000,-1499.36276389,0.00014227,2]
[424269893,1780715442000,-500.0,0.00014452,2]
[424269889,1780715442000,-3715.24586786,0.00014228,2]
[424269887,1780715442000,-5272.1846971,0.00014125,2]
[424269886,1780715442000,-16129.00210477,0.00014114,2]
[424269920,1780715443000,-500.0,0.00014452,2]
[424269925,1780715444000,-52.99039887,0.00014452,2]
[424269924,1780715444000,-500.0,0.00014452,2]
[424269922,1780715444000,-459.7860614,0.00014452,2]
[424269923,1780715444000,-40.2139386,0.00014452,2]
[424269921,1780715444000,-500.0,0.00014452,2]
[424269934,1780715467000,191.834837,0.000105,3]
[424269939,1780715567000,200.0,0.000105,3]
[424269941,1780715771000,158.68,0.00030082,120]
[424269943,1780715963000,205.03,0.0003013,120]
[424269945,1780715969000,229.54,7.929e-05,2]
[424269946,1780716069000,605.3,0.00030136,120]
[424269951,1780716433000,200.0,0.000105,3]
[424269952,1780716439000,2000.0,0.00030137,120]
[424269955,1780716456000,200.0,0.00030137,120]
[424269958,1780716541000,2000.0,0.00030136,120]
[424270002,1780716631000,-500.0,9.382e-05,2]
[424269997,1780716631000,-500.0,9.382e-05,2]
[424269994,1780716631000,-500.0,9.382e-05,2]
[424269993,1780716631000,-615.86128284,9.382e-05,2]
[424269990,1780716631000,-150.0,9.381e-05,2]
[424269991,1780716631000,-335.04274745,9.382e-05,2]
[424269992,1780716631000,-500.0,9.382e-05,2]
[424269988,1780716631000,-846.0,9.381e-05,2]
[424269989,1780716631000,-300.0,9.381e-05,2]
[424269981,1780716631000,-205.0,9.006e-05,2]
[424269987,1780716631000,-200.0,9.339e-05,2]
[424269985,1780716631000,-150.0,9.272e-05,2]
[424269986,1780716631000,-237.5368101,9.308e-05,2]
[424269982,1780716631000,-250.0,9.051e-05,2]
[424269983,1780716631000,-195.81,9.103e-05,2]
[424269984,1780716631000,-2000.0,9.17e-05,2]
[424269979,1780716631000,-70.28285486,8.917e-05,2]
[424269978,1780716631000,-722.4885782,8.829e-05,2]
[424269980,1780716631000,-79.71714514,8.917e-05,2]
[424269996,1780716631000,-500.0,9.382e-05,2]
[424269998,1780716631000,-500.0,9.382e-05,2]
[424269999,1780716631000,-500.0,9.382e-05,2]
[424269995,1780716631000,-171.8095258,9.382e-05,2]
[424270025,1780716631000,-636.50602998,9.712e-05,2]
[424270026,1780716631000,-250.0,9.712e-05,2]
[424270024,1780716631000,-250.0,9.712e-05,2]
[424270027,1780716631000,-1000.0,9.931e-05,2]
[424270023,1780716631000,-2339.8,9.629e-05,2]
[424270019,1780716631000,-3691.06905077,9.383e-05,2]
[424270021,1780716631000,-500.0,9.559e-05,2]
[424270020,1780716631000,-710.36389823,9.4e-05,2]
[424270022,1780716631000,-1514.38,9.601e-05,2]
[424270011,1780716631000,-500.0,9.382e-05,2]
[424270005,1780716631000,-500.0,9.382e-05,2]
[424270009,1780716631000,-86.44669259,9.382e-05,2]
[424270008,1780716631000,-413.55330741,9.382e-05,2]
[424270016,1780716631000,-303.09669258,9.382e-05,2]
[424270017,1780716631000,-147.43526546,9.383e-05,2]
[424270018,1780716631000,-1668.97568377,9.383e-05,2]
[424270003,1780716631000,-242.81968126,9.382e-05,2]
[424270013,1780716631000,-196.90330741,9.382e-05,2]
[424270000,1780716631000,-500.0,9.382e-05,2]
[424270034,1780716632000,-366.06292618,0.00010198,2]
[424270035,1780716632000,-500.0,0.00010198,2]
[424270031,1780716632000,-184.40957594,0.00010198,2]
[424270043,1780716632000,-15758.36696702,0.000102,2]
[424270029,1780716632000,-756.67,0.00010159,2]
[424270028,1780716632000,-545.17,0.00010027,2]
[424270030,1780716632000,-218.80577412,0.0001019,2]
[424270041,1780716632000,-411.47901506,0.00010199,2]
[424270042,1780716632000,-11481.97339629,0.000102,2]
[424270036,1780716632000,-533.36748875,0.00010198,2]
[424270032,1780716632000,-198.47635768,0.00010198,2]
[424270037,1780716632000,-405.86579556,0.00010198,2]
[424270033,1780716632000,-500.0,0.00010198,2]
[424270045,1780716632000,-2500.0,0.000102,2]
[424270046,1780716632000,-726410.88469055,0.000102,2]
[424270047,1780716632000,-115076.92275889,0.000102,2]
[424270050,1780716632000,-1254.41808677,0.000102,2]
[424270048,1780716632000,-55445.49447419,0.000102,2]
[424270044,1780716632000,-72089.45143669,0.000102,2]
[424270040,1780716632000,-250.0,0.00010199,2]
[424270038,1780716632000,-500.0,0.00010198,2]
[424270039,1780716632000,-500.0,0.00010198,2]
[424270049,1780716632000,-153660.5193842,0.000102,2]
[424270051,1780716638000,-319.09427332,0.000101,2]
[424270053,1780716638000,-375.55536096,0.000102,2]
[424270052,1780716638000,-176.00672802,0.0001017,2]
[424270090,1780716640000,-153863.32944521,0.000107,2]
[424270079,1780716640000,-500.0,0.000106,3]
[424270082,1780716640000,-30075.0,0.00010658,2]
[424270078,1780716640000,-1499.36276393,0.00010576,2]
[424270080,1780716640000,-191.56139431,0.00010623,2]
[424270081,1780716640000,-1602.0,0.00010658,2]
[424270086,1780716640000,-33261.1868,0.00010676,2]
[424270083,1780716640000,-250.0,0.00010673,2]
[424270088,1780716640000,-2000.0,0.00010676,2]
[424270087,1780716640000,-1242.2138,0.00010676,2]
[424270085,1780716640000,-151.0,0.00010673,2]
[424270084,1780716640000,-151.0,0.00010673,2]
[424270077,1780716640000,-4000.0,0.00010576,2]
[424270089,1780716640000,-271.70189762,0.000107,2]
[424270076,1780716640000,-545.17,0.00010529,2]
[424270071,1780716640000,-247.613,0.00010299,2]
[424270067,1780716640000,-1000.0,0.00010299,2]
[424270058,1780716640000,-1167.74398626,0.000102,2]
[424270059,1780716640000,-498.74710309,0.000102,2]
[424270060,1780716640000,-295.14003188,0.000102,2]
[424270061,1780716640000,-665.0,0.000102,2]
[424270062,1780716640000,-445149.57412321,0.000102,2]
[424270064,1780716640000,-190.62685279,0.0001027,2]
[424270075,1780716640000,-255.0,0.00010319,2]
[424270063,1780716640000,-2500000.0,0.000102,2]
[424270070,1780716640000,-1000.0,0.00010299,2]
[424270065,1780716640000,-190.62685279,0.0001027,2]
[424270072,1780716640000,-4581.907,0.00010299,2]
[424270066,1780716640000,-545.17,0.00010278,2]
[424270074,1780716640000,-2000.0,0.00010316,2]
[424270092,1780716640000,-545.17,0.00010779,2]
[424270073,1780716640000,-193543.01324119,0.000103,2]
[424270091,1780716640000,-800.0,0.000107,3]
[424270068,1780716640000,-228.14438436,0.00010299,2]
[424270102,1780716640000,-3715.24586786,0.00011068,2]
[424270117,1780716640000,-16129.00210477,0.00012174,2]
[424270128,1780716640000,-151.0,0.0001244,2]
[424270118,1780716640000,-500.0,0.00012219,2]
[424270120,1780716640000,-158.68,0.00012329,2]
[424270121,1780716640000,-271.03860062,0.00012329,2]
[424270119,1780716640000,-166.66,0.00012284,2]
[424270112,1780716640000,-166.66,0.00011568,2]
[424270116,1780716640000,-1499.36276389,0.00012017,2]
[424270122,1780716640000,-3715.24586786,0.00012345,2]
[424270126,1780716640000,-151.0,0.0001244,2]
[424270124,1780716640000,-151.0,0.0001244,2]
[424270130,1780716640000,-16129.00210477,0.00012493,2]
[424270131,1780716640000,-239.32691035,0.00012575,2]
[424270129,1780716640000,-154.0,0.00012486,2]
[424270123,1780716640000,-151.0,0.0001244,2]
[424270109,1780716640000,-433.0,0.00011351,2]
[424270100,1780716640000,-545.17,0.0001103,2]
[424270111,1780716640000,-16129.00210477,0.00011535,2]
[424270104,1780716640000,-16129.00210477,0.00011099,2]
[424270095,1780716640000,-166.66,0.00010851,2]
[424270113,1780716640000,-3715.24586786,0.00011706,2]
[424270099,1780716640000,-150.0,0.00010959,2]
[424270103,1780716640000,-16129.00210483,0.00011099,2]
[424270096,1780716640000,-1300.0,0.000109,3]
[424270093,1780716640000,-215.80795776,0.00010786,2]
[424270094,1780716640000,-1000.0,0.000108,3]
[424270105,1780716640000,-167.63,0.00011129,2]
[424270106,1780716640000,-166.66,0.0001121,2]
[424270115,1780716640000,-166.66,0.00011926,2]
[424270114,1780716640000,-16129.00210477,0.00011854,2]
[424270107,1780716640000,-16129.00210477,0.00011215,2]
[424270108,1780716640000,-1499.36276389,0.00011297,2]
[424270110,1780716640000,-2000.0,0.00011462,2]
[424270097,1780716640000,-3715.2458679,0.000109,2]
[424270139,1780716641000,-300.0,0.00012893,2]
[424270140,1780716641000,-3804.0,0.00012963,5]
[424270134,1780716641000,-1499.36276389,0.00012738,2]
[424270138,1780716641000,-1953.39,0.00012893,2]
[424270132,1780716641000,-2000.0,0.00012608,2]
[424270135,1780716641000,-16129.00210477,0.00012813,2]
[424270137,1780716641000,-9999.99,0.00012893,2]